Cogmind - Beta 14 @@@ ROGUE MODE // 2024.12.30 @ 18:52:57 Player: DreamCore Result: Self-destructed Performance ------------- Evolutions (2) 1000 Regions Visited (5) 1000 Robots Destroyed (15) 75 Value Destroyed (543) 543 Prototype IDs (0) 0 Alien Tech Used (0) 0 Bonus (346) 346 TOTAL SCORE: 2964 Bonus ------- High Alert Combat Kills 16 Follower Combat Kills 330 Cogmind --------- Core Integrity 550/550 Matter 300/300 Energy 265/265 System Corruption 0% Temperature Cool (0) Movement Walking (120) Location -8/Materials Parts ------- > --- POWER (2) -------- Improved Ion Engine > --- PROPULSION (3) --- Aluminum Leg Aluminum Leg Aluminum Leg > --- UTILITY (3) ------ Machine Analyzer Advanced Targeting Computer ECM Suite > --- WEAPON (3) ------- Heavy EM Pulse Gun Light Assault Rifle > --- INVENTORY (5) ---- Light Nuclear Core Aluminum Leg Cesium-ion Thruster Improved EM Shotgun Light Cannon Peak State ------------ > --- POWER ------------ Improved Ion Engine > --- PROPULSION ------- Aluminum Leg Aluminum Leg Aluminum Leg > --- UTILITY ---------- Improved Sensor Array Advanced Targeting Computer ECM Suite > --- WEAPON ----------- Heavy EM Pulse Gun Rocket Launcher > --- INVENTORY -------- Aluminum Leg Wheel Cesium-ion Thruster Improved EM Shotgun Light Cannon [Rating: 16] Favorites ----------- Power Ion Engine Engine Ion Engine Propulsion Aluminum Leg Leg Aluminum Leg Hover Unit Airjet Flight Unit Cesium-ion Thruster Utility ECM Suite Device ECM Suite Storage Small Storage Unit Processor Advanced Targeting Computer Weapon Light Assault Rifle Energy Gun Small Laser Ballistic Gun Light Assault Rifle Launcher Rocket Launcher Build | -11 -10 -10 -9 -9 -8 ------- Run | Yrd Mat Min Mat Sto Mat Slots Evolved 4 | . . . 2 . 2 Power 1 | . . . . . 1 Propulsion 1 | . . . 1 . . Utility 1 | . . . 1 . . Weapon 1 | . . . . . 1 Parts Attached 16 | . 1 6 2 7 . Power 2 | . . . 1 1 . Engine 2 | . . . 1 1 . Core . | . . . . . . Reactor . | . . . . . . Propulsion 7 | . . 4 . 3 . Treads . | . . . . . . Leg 5 | . . 2 . 3 . Wheel . | . . . . . . Hover 1 | . . 1 . . . Flight 1 | . . 1 . . . Utility 4 | . 1 1 1 1 . Device 2 | . 1 1 . . . Storage . | . . . . . . Processor 2 | . . . 1 1 . Hackware . | . . . . . . Protection . | . . . . . . Artifact . | . . . . . . Weapon 3 | . . 1 . 2 . Energy Gun 1 | . . . . 1 . Energy Cannon . | . . . . . . Ballistic Gun 1 | . . . . 1 . Ballistic Cannon . | . . . . . . Launcher 1 | . . 1 . . . Special Weapon . | . . . . . . Impact Weapon . | . . . . . . Slashing Weapon . | . . . . . . Piercing Weapon . | . . . . . . Special Melee Weapon . | . . . . . . Unidentified Prototypes . | . . . . . . Parts Lost 3 | . . 2 . 1 . Power 1 | . . 1 . . . Propulsion 1 | . . 1 . . . Utility 1 | . . . . 1 . Weapon . | . . . . . . Highest Loss Streak 2 | . . 2 . 1 . To Critical Strikes . | . . . . . . Average Slot Usage (%) 91 | . 97 90 79 94 . Engine 9 | . 14 5 6 11 . Leg 24 | . 28 19 22 28 . Hover 1 | . . 3 . . . Flight 1 | . . 4 . . . Device 21 | . 11 25 22 21 . Storage 2 | . 14 1 . . . Processor 5 | . . . 7 11 . Energy Gun 10 | . 14 13 . 8 . Ballistic Gun 11 | . 14 14 11 8 . Launcher 3 | . . . 11 4 . Peak Build Rating 16 | 6 7 13 13 16 . Average Rating 11 | 6 6 9 11 14 . On Entrance 9 | 6 6 7 9 13 16 Naked Turns . | . . . . . . Heaviest Build 17 | 12 14 14 11 17 . Greatest Support 30 | 20 20 20 20 30 . Greatest Overweight (x) 1 | . . 1 . . . Average Overweight (x) . | . . . . . . Largest Inventory Capacity 8 | 8 8 8 5 5 . Average Capacity 5 | 8 8 5 5 5 . Most Carried 8 | 6 8 8 5 5 . Average Carried 5 | 6 7 4 4 4 . Final Capacity 8 | 8 8 5 5 5 5 Final Carried 8 | 6 8 5 5 5 5 Class Distribution -------------------- 71% | Mutant 15% | Commander-Mutant 12% | Scavenger-Mutant Dominant Class ---------------- Mutant | -10/Materials Mutant | -10/Mines Mutant | -9/Materials Commander-Mutant | -9/Storage Commander-Mutant | -8/Materials Resources | -11 -10 -10 -9 -9 -8 ----------- Run | Yrd Mat Min Mat Sto Mat Matter Collected 529 | 189 . 81 . 259 . Remotely . | . . . . . . Salvage Created 489 | . 32 120 . 337 . Parts 25 | . 1 8 . 16 . Haulers Intercepted . | . . . . . . Recyclers Shooed . | . . . . . . Parts Field Recycled . | . . . . . . Retrieved Matter . | . . . . . . Parts Self-Destructed . | . . . . . . Prevented . | . . . . . . Kills | -11 -10 -10 -9 -9 -8 ------- Run | Yrd Mat Min Mat Sto Mat Combat Hostiles Destroyed 14 | . 1 3 . 10 . Guns 8 | . 1 3 . 4 . AOE 6 | . . . . 6 . Classes Destroyed 3 | . 1 . . 2 . Worker 1 | . . . . 1 . Grunt 11 | . 1 3 . 7 . Sentry 3 | . . . . 3 . Best Kill Streak 4 | . 1 1 . 4 . Combat Bots Only 4 | . 1 1 . 4 . Max Kills in Single Turn 2 | . 1 1 . 2 . Gunslinging . | . . . . . . Exploded 2 | . . . . 2 . Melee . | . . . . . . Uniques/NPCs Destroyed . | . . . . . . Combat | -11 -10 -10 -9 -9 -8 -------- Run | Yrd Mat Min Mat Sto Mat Hostile Shots Fired 67 | . 2 32 6 27 . Missed 21 | . 1 7 3 10 . Damage Taken 647 | . 12 280 47 308 . Core 118 | . . 57 . 61 . Absorbed by Shields . | . . . . . . Core Remaining (%) 87 | 100 . 77 . 84 . Volleys Fired 46 | . 8 14 . 24 . Largest 2 | . 2 2 . 2 . Hottest 78 | . 60 60 . 78 . Shots Fired 91 | . 15 28 . 48 . Gun 78 | . 15 28 . 35 . Cannon . | . . . . . . Launcher 13 | . . . . 13 . Special . | . . . . . . Kinetic 43 | . 8 14 . 21 . Thermal 21 | . 7 14 . . . Explosive 13 | . . . . 13 . Electromagnetic 14 | . . . . 14 . Robot Hit Streak 10 | . 8 10 . 7 . Robot Miss Streak 3 | . 1 2 . 3 . Penetration Max . | . . . . . . Secondary Targets 1 | . . . . 1 . Max Gunslinging Chain 1 | . . . . 1 . Shots Hit Robots 61 | . 13 17 . 31 . Core Hits 28 | . 3 5 . 20 . Critical Kills . | . . . . . . Critical Parts Destroyed . | . . . . . . Critical Strikes . | . . . . . . Melee Attacks . | . . . . . . Impact . | . . . . . . Slashing . | . . . . . . Piercing . | . . . . . . Sneak Attacks . | . . . . . . Combat Hostiles . | . . . . . . Follow-up Attacks . | . . . . . . Damage Inflicted 939 | . 120 163 . 656 . Guns 557 | . 120 155 . 282 . Cannons . | . . . . . . Explosions 365 | . . . . 365 . Melee . | . . . . . . Ramming 17 | . . 8 . 9 . Kinetic 259 | . 66 79 . 114 . Thermal 130 | . 54 76 . . . Explosive 365 | . . . . 365 . Electromagnetic 168 | . . . . 168 . Impact . | . . . . . . Slashing . | . . . . . . Piercing . | . . . . . . Highest Corruption . | . . . . . . Average Corruption . | . . . . . . Corruption Purged . | . . . . . . Corruption Blocked . | . . . . . . Overload Shots . | . . . . . . Overflow Damage . | . . . . . . Projectiles . | . . . . . . Explosions . | . . . . . . Melee . | . . . . . . Knockbacks . | . . . . . . Impact . | . . . . . . Kinetic . | . . . . . . Secondary . | . . . . . . Self-Inflicted Damage 51 | . . . . 51 . Shots 2 | . . . . 2 . Rammed 1 | . . 1 . . . Targets Rammed 4 | . . 3 . 1 . Kicked 3 | . . 2 . 1 . Crushed . | . . . . . . Highest Temperature 107 | . 40 107 . 40 . Average Temperature 26 | . 19 45 . 16 . Received Heat Transfer 321 | . 6 156 18 141 . Siege Activations . | . . . . . . Robots Corrupted . | . . . . . . Combat Hostiles . | . . . . . . Parts Fried . | . . . . . . Impact Corruptions . | . . . . . . Robots Melted . | . . . . . . Combat Hostiles . | . . . . . . Parts Melted . | . . . . . . Heat Transferred 300 | . 125 175 . . . Parts Sabotaged . | . . . . . . Parts Stolen . | . . . . . . Parts Stripped . | . . . . . . Power Chain Reactions . | . . . . . . Alert | -11 -10 -10 -9 -9 -8 ------- Run | Yrd Mat Min Mat Sto Mat Peak Influence 553 | . 54 96 15 553 . Initial 206 | . . 21 . 5 206 Average 148 | . 21 34 . 348 . Maximum Alert Level 2 | . . . . 2 . Low Security (%) 69 | 100 100 100 100 20 . Level 1 12 | . . . . 33 . Level 2 17 | . . . . 46 . Level 3 . | . . . . . . Level 4 . | . . . . . . Level 5 . | . . . . . . High Security . | . . . . . . Max Security . | . . . . . . Squads Dispatched 9 | . 1 1 . 7 . Investigation 3 | . . 1 . 2 . Extermination . | . . . . . . Reinforcement 2 | . 1 . . 1 . Assault . | . . . . . . Garrison 4 | . . . . 4 . Intercept . | . . . . . . Searches Triggered . | . . . . . . Construction Impeded . | . . . . . . Haulers Reinforced . | . . . . . . Active Scanning Responses . | . . . . . . Cargo Convoy Interrupts . | . . . . . . Stealth | -11 -10 -10 -9 -9 -8 --------- Run | Yrd Mat Min Mat Sto Mat Distress Signals 1 | . 1 . . . . Communications Jammed . | . . . . . . Distress Signals . | . . . . . . Times Spotted 38 | . 3 7 1 27 . Peak Tracking Total 4 | . 3 2 1 4 . Tactical Retreats 3 | . . 3 . . . Traps | -11 -10 -10 -9 -9 -8 ------- Run | Yrd Mat Min Mat Sto Mat Traps Triggered 3 | . . . . 3 . Indirectly . | . . . . . . Trap Hack Attempts . | . . . . . . Triggered . | . . . . . . Disarmed . | . . . . . . Reprogrammed . | . . . . . . Reused . | . . . . . . Traps Extracted . | . . . . . . Installed . | . . . . . . Triggered . | . . . . . . Machines | -11 -10 -10 -9 -9 -8 ---------- Run | Yrd Mat Min Mat Sto Mat Machines Disabled 2 | . . . . 2 . Max in Single Turn 1 | . . . . 1 . Machines Repaired . | . . . . . . Machines Dismantled . | . . . . . . Machines Sabotaged . | . . . . . . Overloaded Fab Kills . | . . . . . . Hacking | -11 -10 -10 -9 -9 -8 --------- Run | Yrd Mat Min Mat Sto Mat Machines Accessed 9 | . 3 1 1 4 . Terminals 7 | . 2 . 1 4 . Fabricators . | . . . . . . Repair Stations . | . . . . . . Recycling Units 1 | . 1 . . . . Scanalyzers . | . . . . . . Garrison Access . | . . . . . . Total Hacks 16 | . 7 1 1 7 . Successful 7 | . 3 1 1 2 . Failed 9 | . 4 . . 5 . Catastrophic 1 | . . . . 1 . Database Lockouts . | . . . . . . Manual . | . . . . . . Terminals 13 | . 5 . 1 7 . Fabricators . | . . . . . . Repair Stations . | . . . . . . Recycling Units 2 | . 2 . . . . Scanalyzers . | . . . . . . Garrison Access . | . . . . . . Terminal Hacks 7 | . 3 1 1 2 . Open Door 2 | . . 1 . 1 . Alert Level 1 | . 1 . . . . Locate Traps 1 | . . . . 1 . Dispatch Records 1 | . 1 . . . . Hauler Manifests 1 | . 1 . . . . Zone Layout 1 | . . . 1 . . Fabricator Hacks . | . . . . . . Repair Station Hacks . | . . . . . . Recycling Unit Hacks . | . . . . . . Scanalyzer . | . . . . . . Garrison Access Hacks . | . . . . . . Unauthorized Hacks . | . . . . . . Terminals . | . . . . . . Fabricators . | . . . . . . Repair Stations . | . . . . . . Recycling Units . | . . . . . . Scanalyzers . | . . . . . . Garrison Access . | . . . . . . Data Cores Recovered . | . . . . . . Used . | . . . . . . Hacking Detections 5 | . 3 . . 2 . Full Trace Events 1 | . . . . 1 . Feedback Events . | . . . . . . Feedback Blocked . | . . . . . . Robot Schematics Acquired . | . . . . . . Robots Built . | . . . . . . Authchips . | . . . . . . Time . | . . . . . . Total Robot Build Rating . | . . . . . . Part Schematics Acquired . | . . . . . . Parts Built . | . . . . . . Authchips . | . . . . . . Time . | . . . . . . Total Part Build Rating . | . . . . . . Parts Repaired . | . . . . . . Time . | . . . . . . Parts Recycled . | . . . . . . Recycled Matter . | . . . . . . Retrieved Matter . | . . . . . . Retrieved Components . | . . . . . . Parts Scanalyzed . | . . . . . . Part Schematics Acquired . | . . . . . . Parts Damaged . | . . . . . . Bothacking | -11 -10 -10 -9 -9 -8 ------------ Run | Yrd Mat Min Mat Sto Mat Used RIF Installer . | . . . . . . Robots Hacked . | . . . . . . Non-combat . | . . . . . . Combat . | . . . . . . Robot Hacks Applied . | . . . . . . Relay Couplers Released . | . . . . . . Fabnet Peak Effective % . | . . . . . . Robots Rewired . | . . . . . . Allies Hacked . | . . . . . . Hacks Repelled . | . . . . . . Allies | -11 -10 -10 -9 -9 -8 -------- Run | Yrd Mat Min Mat Sto Mat Total Allies 10 | . . . . 10 . Largest Group 10 | . . . . 10 . Highest-Rated Group 88 | . . . . 88 . Highest-Rated Ally 16 | . . . . 16 . Total Orders . | . . . . . . Ally Attacks 108 | . . . . 108 . Total Damage 986 | . . . . 986 . Kills 18 | . . . . 18 . Allies Corrupted . | . . . . . . Allies Melted . | . . . . . . Intel | -11 -10 -10 -9 -9 -8 ------- Run | Yrd Mat Min Mat Sto Mat Robot Analysis Total . | . . . . . . Derelict Logs Recovered 1 | . . 1 . . . Drone Launches . | . . . . . . Drone Recoveries . | . . . . . . Exploration | -11 -10 -10 -9 -9 -8 ------------- Run | Yrd Mat Min Mat Sto Mat Turns Passed 1491 | 45 211 506 156 573 . Spaces Moved 1056 | 38 156 328 128 406 . Core . | . . . . . . Treads . | . . . . . . Legs 958 | 38 156 230 128 406 . Wheels . | . . . . . . Hover 92 | . . 92 . . . Flight 6 | . . 6 . . . Fastest Speed 115 | 120 120 115 120 120 . Average Speed 119 | 120 120 119 120 120 . Slowest Speed 120 | 120 120 120 120 120 . Overloaded Moves . | . . . . . . Propulsion Burnouts . | . . . . . . Robots Hopped . | . . . . . . Cave-ins Triggered . | . . . . . . Exploration Rate (%) 23 | 2 33 54 5 45 1 Regions Visited 5 Branch Regions 2 Pre-discovered Areas . | . . . . . . Known Exits Taken . | . . . . . . Unknown Exits Taken 5 | 1 1 1 1 1 . Scrap Searched . | . . . . . . Spaces Dug . | . . . . . . Terrain Destroyed 23 | . . . . 23 . Melee . | . . . . . . Projectile . | . . . . . . AOE 23 | . . . . 23 . Terrain Rammed . | . . . . . . Walls Destroyed . | . . . . . . Machines Disabled . | . . . . . . Actions | -11 -10 -10 -9 -9 -8 --------- Run | Yrd Mat Min Mat Sto Mat Total 1199 | 37 166 417 130 449 . Wait 56 | . . 55 . 1 . Move 1051 | 37 155 327 127 405 . Hop . | . . . . . . Pick Up 8 | . 2 4 1 1 . Fast Attach 10 | . 1 4 1 4 . Attach 3 | . . 2 1 . . Detach 1 | . . 1 . . . Swap 3 | . . . . 3 . Drop 13 | . . 7 . 6 . Fire 46 | . 8 14 . 24 . Melee . | . . . . . . Ram 1 | . . 1 . . . Kick 3 | . . 2 . 1 . Crush . | . . . . . . Escape Stasis 4 | . . . . 4 . Rewire . | . . . . . . Trap . | . . . . . . Miscellaneous . | . . . . . . Route ------- -11/Scrapyard -10/Materials -10/Mines -9/Materials -9/Storage -8/Materials History --------- Turn | Location | Event 1 | -11/Scrapyard | Discovered new exit (range 3) 46 | -11/Scrapyard | Entered Materials 231 | -10/Materials | Discovered new exit (range 9) 257 | -10/Materials | Entered Mines 304 | -10/Mines | Met a Derelict shopkeep closing up shop 372 | -10/Mines | Build established: Mutant 548 | -10/Mines | Learned 4 Materials zone layouts 733 | -10/Mines | Discovered new exit (range 14) 755 | -10/Mines | Received a Rocket Launcher from a helpful Derelict 763 | -10/Mines | Entered Materials 763 | -9/Materials | Evolved 2 slots: Propulsion x1, Utility x1 798 | -9/Materials | Discovered new exit (range 16) 919 | -9/Materials | Entered Storage 1077 | -9/Storage | Assisted by bots powering up and referring to "LRC-V3" 1112 | -9/Storage | Garrison activated, responded to threat 1470 | -9/Storage | Discovered new exit (range 15) 1492 | -9/Storage | Entered Materials 1492 | -8/Materials | Accompanied by 2 allies 1492 | -8/Materials | Evolved 2 slots: Power x1, Weapon x1 1492 | -8/Materials | Self-destructed Last Messages --------------- 01456_ Recycling Unit x1 01456_ Terminal x1 01457_ Acquired 12 matter. 01460_ R-06 Scavenger collects Wheel. 01468_ R-06 Scavenger collects Sml. Laser. 01470_ EXIT=FOUND 01473_ R-06 Scavenger collects Recalibrator. 01475_ Triggered Stasis Trap. 01475_ A bubble of rippling energy engulfs the area. 01475_ Field strength at 83. 01476_ Field strength at 66. 01477_ Field strength at 49. 01478_ Field strength at 32. 01479_ Field strength at 15. 01480_ Stasis field depleted. 01483_ >> Machine Analyzer network decryption results: 01483_ Terminal x1 PARAMETERS=POWER+1,WEAPON+1 LOCATION=UNKNOWN GOAL=ESCAPE Map ----- +----------------------------------------------------+ | | | | | | | | | | | | | | | | | | | | | | | | | | | ?????????????????????????????????????? | | ?????????????????????????????????????? | | ?????????????????????????????????????? | | ?????????????????????????????????????? | | ?????????????????????????????????????? | | ?????????????????????????????????????? | | ?????????????????????????????????????? | | ?????????????????????????????????????? | | ?????????????????????????????????????? | | ?????????????????????????????????????? | | ???????????????????#########?????????? | | ???????????????????? g #?????????? | | ???????????????????????# @g#?????????? | | ???????????????????????# #?????????? | | ???????????????????????# +?????????? | | ??????????????????????? #?????????? | | ?????????????????????? #?????????? | | ????????????????????? #?????????? | | ?????????????????????### #?????????? | | ???????????????????????# #?????????? | | ???????????????????????# #?????????? | | ???????????????????????# #?????????? | | ??????????????????????? #?????????? | | ??????????????????????? #?????????? | | ??????????????????????? #?????????? | | ???????????????????????##+#??????????? | | ?????????????????????????????????????? | | ?????????????????????????????????????? | | ?????????????????????????????????????? | | ?????????????????????????????????????? | | ?????????????????????????????????????? | | ?????????????????????????????????????? | | ?????????????????????????????????????? | | ?????????????????????????????????????? | | ?????????????????????????????????????? | | ?????????????????????????????????????? | | ?????????????????????????????????????? | +----------------------------------------------------+ Best States ------------- Heat Dissipation 28 Energy Generation 12 Energy Capacity 265 Matter Stores 300 Matter Capacity 300 Sight Range 16 Robot Scan Range 15 Terrain Scan Density 10 ECM Strength 1 Evasion (%) 55 Targeting Accuracy 8 Item Schematics ----------------- None Robot Schematics ------------------ None Fabricated ------------ Nothing Alien Tech Used ----------------- None Achievements -------------- None Challenges ------------ None Game ------ Seed ActuatorDamperRecalibrator Manual? 0 Play Time 00:26:41 Cumulative 25.7 hours Start 2024.08.14 @ 20:49:54 End 2024.12.30 @ 18:52:57 Sessions 8 Manual Loads 0 Difficulty Rogue Special Mode None Game No. 39 Rogue 39 Adventurer 0 Explorer 0 Win Type - Total 0 Types 0/0/0/0/0/0/0/0/0 Lore% 17 Gallery% 25 Achievement% 23 Wizard Run 0 Options --------- Layout 1 ASCII 0 Keyboard 1 Movement Arrows Keybinds 0 Fullscreen 0 Font 18/SmallcapsGlow Map View 76x50 Zoom Use 0% Tactical HUD 1 Map Filters NONE Filters NONE Steam 1 RUN: 93dcc2b9-bce5-47a5-94f3-2ea4b3f3f027